fUSD/lending_fUSD_20250108
["ID","MTS","AMOUNT","RATE_DAILY","PERIOD"]
[348147601,1736355041296,-500.0,0.00011797,2]
[348147603,1736355041306,-1122.46,0.00011797,2]
[348147605,1736355041315,-564.44,0.00011797,2]
[348147607,1736355041325,-1908.81,0.00011797,2]
[348147609,1736355041336,-500.0,0.00011797,2]
[348147611,1736355041346,-1650.18,0.00011797,2]
[348147613,1736355041356,-786.57,0.00011797,2]
[348147615,1736355041366,-558.45,0.00011797,2]
[348147617,1736355041377,-609.99,0.00011797,2]
[348147619,1736355041389,-1290.14,0.00011797,2]
[348147622,1736355041401,-500.0,0.00011797,2]
[348147624,1736355041411,-500.0,0.00011797,2]
[348147626,1736355041421,-500.0,0.00011797,2]
[348147628,1736355041431,-500.0,0.00011797,2]
[348147630,1736355041442,-500.0,0.00011798,2]
[348147640,1736355041620,-500.0,0.00011798,2]
[348147642,1736355041630,-500.0,0.00011798,2]
[348147644,1736355041640,-500.0,0.00011798,2]
[348147646,1736355041650,-657.42,0.00011798,2]
[348147648,1736355041661,-500.0,0.00011798,2]
[348147650,1736355041671,-889.92,0.00011798,2]
[348147652,1736355041681,-512.2,0.00011798,2]
[348147654,1736355041691,-607.83,0.00011798,2]
[348147656,1736355041701,-561.98,0.00011798,2]
[348147658,1736355041711,-500.0,0.00011798,2]
[348147660,1736355041721,-500.0,0.00011798,2]
[348147663,1736355041731,-1203.99,0.00011798,2]
[348147665,1736355041741,-558.35,0.00011798,2]
[348147667,1736355041751,-581.1,0.00011798,2]
[348147669,1736355041763,-500.0,0.00011798,2]
[348147671,1736355041773,-500.0,0.00011798,2]
[348147673,1736355041783,-500.0,0.00011798,2]
[348147675,1736355041793,-500.0,0.00011798,2]
[348147677,1736355041803,-1000.0,0.000119,2]
[348147679,1736355041813,-500.0,0.00011915,2]
[348147681,1736355041823,-500.0,0.00011915,2]
[348147683,1736355041835,-500.0,0.00011915,2]
[348147685,1736355041845,-500.0,0.00011915,2]
[348147688,1736355041855,-500.0,0.00011915,2]
[348147690,1736355041865,-500.0,0.00011915,2]
[348147692,1736355041875,-500.0,0.00011915,2]
[348147694,1736355041884,-551.52,0.00011915,2]
[348147696,1736355041894,-500.0,0.00011915,2]
[348147698,1736355041903,-500.0,0.00011915,2]
[348147700,1736355041913,-150.89,0.00011915,2]
[348147702,1736355041924,-500.0,0.00011915,2]
[348147704,1736355041933,-918.73,0.00011915,2]
[348147706,1736355041943,-500.0,0.00011915,2]
[348147708,1736355041952,-588.89,0.00011915,2]
[348147710,1736355041962,-500.0,0.00011915,2]
[348147712,1736355041971,-500.0,0.00011915,2]
[348147714,1736355041981,-500.0,0.00011915,2]
[348147716,1736355041990,-500.0,0.00011915,2]
[348147718,1736355041999,-413.784965,0.00011915,2]
[348147720,1736355042009,-500.0,0.00011915,2]
[348147722,1736355042018,-1810.0,0.00011915,2]
[348147724,1736355042027,-500.0,0.00011915,2]
[348147726,1736355042036,-443.164798,0.00011915,2]
[348147728,1736355042046,-500.0,0.00011915,2]
[348147730,1736355042056,-500.0,0.00011915,2]
[348147732,1736355042066,-1221.28,0.00011915,2]
[348147734,1736355042075,-500.0,0.00011915,2]
[348147736,1736355042087,-500.0,0.00011915,2]
[348147738,1736355042097,-622.1,0.00011915,2]
[348147740,1736355042106,-500.0,0.00011915,2]
[348147742,1736355042116,-395.86104915,0.00011915,2]
[348147744,1736355042125,-500.0,0.00011915,2]
[348147747,1736355042135,-500.0,0.00011915,2]
[348147749,1736355042144,-500.0,0.00011915,2]
[348147751,1736355042154,-500.0,0.00011915,2]
[348147753,1736355042164,-500.0,0.00011915,2]
[348147755,1736355042173,-500.0,0.00011915,2]
[348147757,1736355042183,-500.0,0.00011915,2]
[348147759,1736355042192,-946.73,0.00011915,2]
[348147761,1736355042202,-689.59,0.00011915,2]
[348147763,1736355042212,-884.86,0.00011915,2]
[348147765,1736355042221,-686.23,0.00011916,2]
[348147767,1736355042230,-778.11,0.00011916,2]
[348147769,1736355042239,-1387.69,0.00011916,2]
[348147771,1736355042249,-3221.27,0.00011916,2]
[348147773,1736355042259,-500.0,0.00011916,2]
[348147775,1736355042269,-500.0,0.00011916,2]
[348147777,1736355042279,-1403.1,0.00011916,2]
[348147779,1736355042289,-500.0,0.00011916,2]
[348147781,1736355042298,-503.78,0.00011916,2]
[348147783,1736355042309,-500.0,0.00011916,2]
[348147785,1736355042319,-500.0,0.00011916,2]
[348147787,1736355042329,-500.0,0.00011916,2]
[348147789,1736355042340,-500.0,0.00011916,2]
[348147791,1736355042350,-631.34,0.00011916,2]
[348147793,1736355042360,-576.87,0.00011916,2]
[348147795,1736355042370,-500.0,0.00011917,2]
[348147797,1736355042380,-500.0,0.00011917,2]
[348147799,1736355042390,-500.0,0.00011917,2]
[348147800,1736355042399,-1451.8,0.00011917,2]
[348147802,1736355042408,-2539.023,0.00011946,2]
[348147804,1736355042418,-173.045,0.00011946,2]
[348147806,1736355042428,-153.87436,0.00012,2]
[348147807,1736355042437,-1057.0,0.00012,2]
[348147809,1736355042447,-429.70395169,0.00012052,2]
[348147811,1736355042457,-317.3361422,0.00012053,2]
[348147813,1736355042468,-200.0,0.00012055,2]
[348147814,1736355042478,-500.0,0.00012071,2]
[348147816,1736355042489,-500.0,0.00012071,2]
[348147818,1736355042499,-500.0,0.00012071,2]
[348147820,1736355042512,-1741.38,0.00012071,2]
[348147821,1736355042522,-500.0,0.00012071,2]
[348147823,1736355042532,-1483.6,0.00012071,2]
[348147825,1736355042543,-500.0,0.00012071,2]
[348147827,1736355042552,-500.0,0.00012071,2]
[348147828,1736355042561,-931.94,0.00012071,2]
[348147830,1736355042571,-618.16,0.00012071,2]
[348147832,1736355042580,-208.52937373,0.00012071,2]
[348147834,1736355042595,-1681.48,0.00012071,2]
[348147836,1736355042605,-500.0,0.00012071,2]
[348147837,1736355042614,-500.0,0.00012071,2]
[348147839,1736355042624,-500.0,0.00012071,2]
[348147841,1736355042634,-823.43,0.00012071,2]
[348147843,1736355042643,-1220.8,0.00012071,2]
[348147845,1736355042653,-558.57,0.00012071,2]
[348147847,1736355042663,-680.23,0.00012071,2]
[348147848,1736355042672,-500.0,0.00012071,2]
[348147850,1736355042682,-687.26,0.00012071,2]
[348147852,1736355042691,-597.14,0.00012071,2]
[348147853,1736355042700,-1928.72,0.00012071,2]
[348147855,1736355042710,-500.0,0.00012071,2]
[348147857,1736355042719,-1122.46,0.00012071,2]
[348147859,1736355042728,-564.44,0.00012071,2]
[348147860,1736355042737,-1908.81,0.00012071,2]
[348147862,1736355042746,-500.0,0.00012071,2]
[348147864,1736355042755,-1650.18,0.00012071,2]
[348147866,1736355042764,-786.57,0.00012071,2]
[348147868,1736355042774,-609.99,0.00012071,2]
[348147869,1736355042783,-1290.14,0.00012071,2]
[348147871,1736355042792,-26.81794646,0.00012071,2]
[348147892,1736355043021,-473.18205354,0.00012071,2]
[348147894,1736355043031,-500.0,0.00012071,2]
[348147896,1736355043040,-500.0,0.00012071,2]
[348147897,1736355043049,-500.0,0.00012071,2]
[348147899,1736355043058,-500.0,0.00012072,2]
[348147901,1736355043067,-500.0,0.00012072,2]
[348147903,1736355043076,-117.26611475,0.00012072,2]
[348147907,1736355043105,-852.1,0.00011797,2]
[348147908,1736355043115,-382.73388525,0.00012072,2]
[348147910,1736355043125,-500.0,0.00012072,2]
[348147912,1736355043134,-657.42,0.00012072,2]
[348147914,1736355043143,-500.0,0.00012072,2]
[348147916,1736355043152,-889.92,0.00012072,2]
[348147918,1736355043161,-512.2,0.00012072,2]
[348147919,1736355043170,-607.83,0.00012072,2]
[348147921,1736355043181,-561.98,0.00012072,2]
[348147923,1736355043190,-500.0,0.00012072,2]
[348147925,1736355043199,-500.0,0.00012072,2]
[348147927,1736355043209,-1203.99,0.00012072,2]
[348147929,1736355043218,-558.35,0.00012072,2]
[348147931,1736355043227,-581.1,0.00012072,2]
[348147932,1736355043236,-500.0,0.00012072,2]
[348147934,1736355043245,-500.0,0.00012072,2]
[348147936,1736355043254,-354.83,0.00012072,2]
[348147938,1736355043264,-500.0,0.00012072,2]
[348147940,1736355043273,-150.0,0.00012099,2]
[348147942,1736355043282,-169.87574698,0.00012099,2]
[348147943,1736355043292,-1247.53,0.00012099,2]
[348147945,1736355043301,-834.06036777,0.000121,2]
[348147952,1736355043451,-303.46773847,0.00010249,2]
[348147953,1736355043460,-500.0,0.00010702,2]
[348147954,1736355043470,-852.1,0.00012071,2]
[348147955,1736355043479,-1602.39963223,0.000121,2]
[348147957,1736355043489,-1486.4826293,0.000121,2]
[348147959,1736355043502,-447.500003,0.000121,2]
[348147961,1736355043521,-11299.51392,0.000121,2]
[348147964,1736355043532,-327.936,0.000121,2]
[348147966,1736355043544,-18735.74145583,0.000121,2]
[348147968,1736355043556,-11157.499999,0.000121,2]
[348147972,1736355043585,-2265.75176574,0.000121,2]
[348147975,1736355043610,-3746.46153348,0.000121,2]
[348147977,1736355043622,-2663.27874516,0.000121,2]
[348147980,1736355043633,-2837.92272679,0.000121,2]
[348147997,1736355043791,-14615.97967031,0.00010272,2]
[348147999,1736355043801,-500.0,0.00010976,2]
[348148001,1736355043812,-500.0,0.00011249,2]
[348148003,1736355043822,-500.0,0.00011249,2]
[348148015,1736355043885,-500.65423575,0.00011249,2]
[348148017,1736355043895,-500.0,0.00011249,2]
[348148019,1736355043904,-500.0,0.0001125,2]
[348148021,1736355043913,-395.88319079,0.00011522,2]
[348148023,1736355043923,-500.0,0.00011796,2]
[348148025,1736355043932,-500.0,0.00012099,2]
[348148027,1736355043941,-54833.08036042,0.000121,2]
[348148030,1736355043966,-504.79558784,0.00011522,2]
[348148032,1736355043975,-500.0,0.00012099,2]
[348148034,1736355043985,-4676.70504817,0.000121,2]
[348148037,1736355043996,-3692.25372298,0.000121,2]
[348148040,1736355044012,-475.0,0.000121,2]
[348148043,1736355044029,-500.0,0.00011524,2]
[348148045,1736355044039,-166.54000001,0.000121,2]
[348148047,1736355044050,-376.517365,0.000121,2]
[348148050,1736355044064,-13049.07094828,0.000121,2]
[348148052,1736355044075,-19477.93655241,0.000121,2]
[348148077,1736355044308,-153.83,0.00011249,2]
[348148079,1736355044317,-500.0,0.00011249,2]
[348148081,1736355044326,-500.0,0.00011523,2]
[348148083,1736355044336,-165.80744278,0.00011798,2]
[348148085,1736355044348,-334.19255722,0.00011798,2]
[348148088,1736355044357,-1989.85274698,0.000121,2]
[348148090,1736355044373,-146643.3244161,0.000121,2]
[348148092,1736355044384,-1027.2504,0.000121,2]
[348148095,1736355044396,-182852.09477185,0.000121,2]
[348148097,1736355044405,-1019.37080627,0.000121,2]
[348148099,1736355044414,-1000.0,0.00012165,2]
[348148101,1736355044424,-500.0,0.00012189,2]
[348148103,1736355044433,-500.0,0.00012189,2]
[348148104,1736355044442,-500.0,0.00012189,2]
[348148107,1736355044452,-500.0,0.00012189,2]
[348148109,1736355044462,-196.62026761,0.00012189,2]
[348148111,1736355044471,-500.0,0.00012189,2]
[348148112,1736355044480,-500.0,0.00012189,2]
[348148115,1736355044491,-551.52,0.00012189,2]
[348148117,1736355044501,-500.0,0.00012189,2]
[348148119,1736355044513,-500.0,0.00012189,2]
[348148121,1736355044522,-500.0,0.00012189,2]
[348148123,1736355044531,-918.73,0.00012189,2]
[348148125,1736355044540,-500.0,0.00012189,2]
[348148127,1736355044550,-588.89,0.00012189,2]
[348148128,1736355044559,-500.0,0.00012189,2]
[348148130,1736355044568,-382.41,0.00012189,2]
[348148132,1736355044577,-500.0,0.00012189,2]
[348148134,1736355044589,-500.0,0.00012189,2]
[348148136,1736355044600,-413.784965,0.00012189,2]
[348148138,1736355044609,-500.0,0.00012189,2]
[348148140,1736355044619,-1810.0,0.00012189,2]
[348148142,1736355044629,-533.93545711,0.00012189,2]
[348148144,1736355044639,-443.164798,0.00012189,2]
[348148146,1736355044648,-500.0,0.00012189,2]
[348148148,1736355044658,-500.0,0.00012189,2]
[348148150,1736355044667,-1221.28,0.00012189,2]
[348148152,1736355044676,-500.0,0.00012189,2]
[348148154,1736355044685,-500.0,0.00012189,2]
[348148156,1736355044694,-622.1,0.00012189,2]
[348148158,1736355044703,-500.0,0.00012189,2]
[348148160,1736355044712,-500.0,0.00012189,2]
[348148162,1736355044722,-500.0,0.00012189,2]
[348148164,1736355044731,-500.0,0.00012189,2]
[348148166,1736355044741,-500.0,0.00012189,2]
[348148168,1736355044750,-500.0,0.00012189,2]
[348148170,1736355044760,-500.0,0.00012189,2]
[348148172,1736355044769,-500.0,0.00012189,2]
[348148174,1736355044778,-946.73,0.00012189,2]
[348148176,1736355044788,-689.59,0.00012189,2]
[348148178,1736355044797,-884.86,0.00012189,2]
[348148180,1736355044808,-686.23,0.0001219,2]
[348148182,1736355044819,-778.11,0.0001219,2]
[348148184,1736355044829,-1387.69,0.0001219,2]
[348148186,1736355044841,-3221.27,0.0001219,2]
[348148188,1736355044850,-500.0,0.0001219,2]
[348148190,1736355044859,-500.0,0.0001219,2]
[348148192,1736355044869,-1403.1,0.0001219,2]
[348148194,1736355044879,-500.0,0.0001219,2]
[348148196,1736355044888,-503.78,0.0001219,2]
[348148198,1736355044897,-500.0,0.0001219,2]
[348148200,1736355044907,-500.0,0.0001219,2]
[348148202,1736355044916,-500.0,0.0001219,2]
[348148204,1736355044926,-500.0,0.0001219,2]
[348148206,1736355044935,-631.34,0.0001219,2]
[348148208,1736355044945,-576.87,0.0001219,2]
[348148210,1736355044954,-500.0,0.00012191,2]
[348148212,1736355044963,-500.0,0.00012191,2]
[348148214,1736355044972,-500.0,0.00012191,2]
[348148216,1736355044982,-1451.8,0.00012191,2]
[348148218,1736355044991,-153.87436,0.000122,2]
[348148220,1736355045000,-405.54569945,0.000122,2]
[348148222,1736355045010,-1386.30817923,0.000122,2]
[348148224,1736355045020,-2114.90797025,0.000122,2]
[348148226,1736355045029,-150.0,0.00012236,2]
[348148228,1736355045038,-261.4084419,0.00012273,2]
[348148230,1736355045049,-500.0,0.00012273,2]
[348148232,1736355045058,-500.0,0.00012273,2]
[348148234,1736355045067,-150.0,0.00012274,2]
[348148236,1736355045076,-7051.0451371,0.00012294,2]
[348148238,1736355045086,-2000.0,0.00012299,2]
[348148240,1736355045095,-2000.0,0.00012299,2]
[348148242,1736355045104,-2000.0,0.00012299,2]
[348148244,1736355045114,-2000.0,0.00012299,2]
[348148246,1736355045123,-2000.0,0.00012299,2]
[348148248,1736355045132,-2000.0,0.00012299,2]
[348148250,1736355045141,-2000.0,0.00012299,2]
[348148252,1736355045151,-500.0,0.00012299,2]
[348148254,1736355045160,-741.52,0.00012299,2]
[348148255,1736355045170,-3000.0,0.00012299,2]
[348148257,1736355045180,-500.81035417,0.00012299,2]
[348148259,1736355045190,-1021.0,0.00012299,2]
[348148262,1736355045200,-2080523.3964,0.000123,4]
[348148264,1736355045212,-1660.0,0.000123,4]
[348148267,1736355045230,-500.0,0.00011797,2]
[348148268,1736355045241,-509.62822599,0.000123,4]
[348148269,1736355045252,-544118.79641328,0.000123,4]
[348148313,1736355046360,-500.0,0.00011249,2]
[348148315,1736355046370,-500.0,0.00011249,2]
[348148317,1736355046380,-500.0,0.00011249,2]
[348148319,1736355046390,-500.0,0.00011249,2]
[348148321,1736355046400,-500.0,0.00011249,2]
[348148323,1736355046410,-500.0,0.00011523,2]
[348148325,1736355046420,-162.508035,0.00011641,2]
[348148327,1736355046429,-500.0,0.00011641,2]
[348148329,1736355046440,-500.0,0.00011797,2]
[348148331,1736355046449,-500.0,0.00012071,2]
[348148333,1736355046459,-500.0,0.00012071,2]
[348148335,1736355046469,-500.0,0.00012072,2]
[348148337,1736355046479,-20288.49918153,0.000123,4]
[348148339,1736355046491,-23256.791552,0.000123,4]
[348148346,1736355046553,-9480.1,0.000123,4]
[348148357,1736355046649,-500.0,0.00011249,2]
[348148359,1736355046659,-2474.4866012,0.000123,4]
[348148365,1736355046705,-102498.45767748,0.000123,4]
[348148367,1736355046717,-656.22638237,0.000123,4]
[348148370,1736355046728,-1601.3993352,0.000123,4]
[348148372,1736355046739,-4837.28245,0.000123,4]
[348148374,1736355046750,-1269.07782482,0.000123,4]
[348148381,1736355046807,-3628.24012698,0.000123,4]
[348148383,1736355046819,-2922.42061981,0.000123,4]
[348148385,1736355046833,-2303.39997,0.000123,4]
[348149144,1736355552129,-500.95,8.235e-05,2]
[348149145,1736355715614,19499.05,8.5e-05,2]
[348149146,1736355817166,200690.33516381,0.0002,120]
[348149147,1736355848517,146500.94,0.0002,120]
[348149569,1736356231709,-505.48,8.219e-05,2]
[348149570,1736356231718,-455.77714925,8.499e-05,2]
[348149571,1736356231730,-514.44825075,8.499e-05,2]
[348149572,1736356231739,-10.32108785,8.673e-05,2]
[348149573,1736356231750,-633.43891215,8.673e-05,2]
[348149574,1736356231760,-539.34,8.736e-05,2]
[348149575,1736356231773,-537.01831686,8.771e-05,2]
[348149576,1736356231782,-250.0,8.771e-05,2]
[348149577,1736356231791,-528.14013937,8.9e-05,2]
[348149578,1736356231802,-471.165,8.9e-05,2]
[348149579,1736356231814,-1566.12486063,8.9e-05,2]
[348149580,1736356231823,-81.87513937,9.119e-05,2]
[348149581,1736356231835,-438.14001,9.119e-05,2]
[348149582,1736356231846,-691.02406608,9.119e-05,2]
[348149583,1736356231868,-2835.6625,9.119e-05,2]
[348149584,1736356231881,-330.0,9.119e-05,2]
[348149585,1736356231896,-1256.85614415,9.119e-05,2]
[348149586,1736356231907,-3309.99995,9.119e-05,2]
[348149587,1736356235383,-6623.3605065,9.119e-05,2]
[348149588,1736356236301,-10708.5956361,9.119e-05,2]
[348149589,1736356236312,-1000.0,9.119e-05,2]
[348149590,1736356236323,-1501.80896543,9.119e-05,2]
[348149591,1736356236335,-4352.52,9.196e-05,2]
[348149592,1736356236346,-150.0,9.401e-05,2]
[348149593,1736356236357,-265.514,9.402e-05,2]
[348149595,1736356236368,-9503.83,9.402e-05,2]
[348149597,1736356236378,-470.56,9.432e-05,2]
[348149599,1736356236389,-1729.25,9.502e-05,2]
[348149601,1736356236400,-4788.67,9.502e-05,2]
[348149603,1736356236411,-71204.05,9.502e-05,2]
[348149606,1736356236422,-29872.3725,9.53e-05,2]
[348149608,1736356236432,-168.8545,9.543e-05,2]
[348149610,1736356236443,-5446.09,9.543e-05,2]
[348149612,1736356236453,-200.0,9.63e-05,2]
[348149614,1736356236464,-28189.35,9.63e-05,2]
[348149616,1736356236475,-150.99,9.63e-05,2]
[348149618,1736356236485,-7003.73,9.63e-05,2]
[348149621,1736356236496,-299.99,9.63e-05,2]
[348149623,1736356236507,-7374.14,9.643e-05,2]
[348149625,1736356236517,-2937.05,9.643e-05,2]
[348149627,1736356236531,-150.99,9.643e-05,2]
[348149629,1736356236542,-492.9145,9.664e-05,2]
[348149631,1736356236553,-2508.13,9.677e-05,2]
[348149633,1736356236563,-1500.0,9.694e-05,2]
[348149636,1736356236574,-2000.0,9.717e-05,2]
[348149638,1736356236584,-15864.2626,9.745e-05,2]
[348149640,1736356236595,-250.0,9.751e-05,2]
[348149642,1736356236605,-927.09,9.763e-05,2]
[348149644,1736356236616,-933.18,9.763e-05,2]
[348149646,1736356236627,-801.47,9.763e-05,2]
[348149648,1736356236638,-500.0,9.763e-05,2]
[348149650,1736356236648,-500.0,9.763e-05,2]
[348149653,1736356236659,-1464.27,9.763e-05,2]
[348149655,1736356236670,-500.0,9.763e-05,2]
[348149657,1736356236680,-500.0,9.763e-05,2]
[348149659,1736356236691,-500.0,9.763e-05,2]
[348149661,1736356236702,-501.18021556,9.763e-05,2]
[348149663,1736356236713,-500.0,9.763e-05,2]
[348149665,1736356236723,-500.0,9.763e-05,2]
[348149667,1736356236734,-500.0,9.763e-05,2]
[348149670,1736356236745,-500.0,9.763e-05,2]
[348149672,1736356236756,-500.0,9.763e-05,2]
[348149674,1736356236766,-500.0,9.763e-05,2]
[348149676,1736356236782,-500.0,9.763e-05,2]
[348149678,1736356236793,-500.0,9.763e-05,2]
[348149680,1736356236804,-500.0,9.763e-05,2]
[348149682,1736356236814,-803.55,9.763e-05,2]
[348149684,1736356236826,-501.55883974,9.763e-05,2]
[348149687,1736356236837,-23900.0,9.764e-05,2]
[348149689,1736356236849,-539.34,9.828e-05,2]
[348149691,1736356236860,-12344.59,9.845e-05,2]
[348149693,1736356236871,-572.60502449,9.899e-05,2]
[348149695,1736356236883,-572.60502449,9.9e-05,2]
[348149698,1736356236897,-250.0,9.976e-05,2]
[348149700,1736356236909,-500.0,9.999e-05,2]
[348149701,1736356236920,-500.0,9.999e-05,2]
[348149702,1736356236932,-1592.55,9.999e-05,2]
[348149703,1736356236944,-796.27,9.999e-05,2]
[348149704,1736356236955,-500.0,9.999e-05,2]
[348149705,1736356236967,-500.0,9.999e-05,2]
[348149706,1736356236979,-555.33,9.999e-05,2]
[348149707,1736356236991,-555.33,9.999e-05,2]
[348149708,1736356237002,-500.0,9.999e-05,2]
[348149710,1736356237014,-500.0,9.999e-05,2]
[348149712,1736356237031,-5295.56979067,0.0001,4]
[348149714,1736356237042,-799.86,0.00010019,2]
[348149716,1736356237054,-927.09,0.00010037,2]
[348149719,1736356237066,-933.18,0.00010037,2]
[348149721,1736356237077,-801.47,0.00010037,2]
[348149723,1736356237088,-500.0,0.00010037,2]
[348149725,1736356237099,-500.0,0.00010037,2]
[348149727,1736356237111,-1464.27,0.00010037,2]
[348149729,1736356237122,-500.0,0.00010037,2]
[348149732,1736356237134,-500.0,0.00010037,2]
[348149734,1736356237145,-500.0,0.00010037,2]
[348149736,1736356237156,-500.0,0.00010037,2]
[348149738,1736356237167,-500.0,0.00010037,2]
[348149740,1736356237178,-500.0,0.00010037,2]
[348149743,1736356237190,-500.0,0.00010037,2]
[348149745,1736356237200,-500.0,0.00010037,2]
[348149747,1736356237212,-500.0,0.00010037,2]
[348149749,1736356237224,-803.55,0.00010037,2]
[348149751,1736356237235,-169.65,0.0001005,2]
[348149753,1736356237246,-200.0,0.00010077,2]
[348149755,1736356237257,-713.7,0.00010137,2]
[348149757,1736356237268,-500.0,0.00010157,2]
[348149760,1736356237283,-232.71,0.00010257,2]
[348149762,1736356237294,-231.15074164,0.00010257,2]
[348149764,1736356237305,-1000.0,0.00010259,2]
[348149766,1736356237315,-500.0,0.00010272,2]
[348149768,1736356237325,-956.12,0.00010272,2]
[348149770,1736356237335,-2115.02,0.00010272,2]
[348149772,1736356237345,-500.0,0.00010272,2]
[348149774,1736356237355,-500.0,0.00010272,2]
[348149776,1736356237365,-500.0,0.00010272,2]
[348149778,1736356237374,-908.98,0.00010272,2]
[348149780,1736356237383,-1118.12,0.00010272,2]
[348149782,1736356237392,-500.0,0.00010272,2]
[348149784,1736356237403,-2210.18,0.00010272,2]
[348149786,1736356237413,-531.58,0.00010272,2]
[348149825,1736356237709,-500.0,0.00010272,2]
[348149828,1736356237733,-1085.66,0.00010272,2]
[348149831,1736356237754,-765.15,0.00010272,2]
[348149833,1736356237764,-522.06171876,0.00010272,2]
[348149835,1736356237778,-500.0,0.00010272,2]
[348149837,1736356237787,-500.0,0.00010272,2]
[348149839,1736356237797,-500.0,0.00010273,2]
[348149841,1736356237806,-1592.55,0.00010273,2]
[348149843,1736356237815,-796.27,0.00010273,2]
[348149844,1736356237825,-500.0,0.00010273,2]
[348149847,1736356237835,-555.33,0.00010273,2]
[348149848,1736356237844,-555.33,0.00010273,2]
[348149850,1736356237854,-500.0,0.00010273,2]
[348149853,1736356237864,-500.0,0.00010273,2]
[348149854,1736356237873,-927.09,0.00010311,2]
[348149857,1736356237886,-933.18,0.00010311,2]
[348149858,1736356237895,-801.47,0.00010311,2]
[348149860,1736356237904,-500.0,0.00010311,2]
[348149863,1736356237914,-1464.27,0.00010311,2]
[348149864,1736356237924,-500.0,0.00010311,2]
[348149866,1736356237933,-500.0,0.00010311,2]
[348149868,1736356237942,-500.0,0.00010311,2]
[348149870,1736356237950,-500.0,0.00010311,2]
[348149873,1736356237961,-500.0,0.00010311,2]
[348149874,1736356237971,-500.0,0.00010311,2]
[348149876,1736356237980,-500.0,0.00010311,2]
[348149878,1736356237990,-803.55,0.00010311,2]
[348149880,1736356237999,-255.0,0.00010342,2]
[348149882,1736356238009,-505.48,0.00010411,2]
[348149884,1736356238019,-670.726165,0.00010453,2]
[348149886,1736356238033,-500.0,0.00010546,2]
[348149888,1736356238042,-956.12,0.00010546,2]
[348149890,1736356238051,-2115.02,0.00010546,2]
[348149892,1736356238060,-500.0,0.00010546,2]
[348149894,1736356238070,-500.0,0.00010546,2]
[348149896,1736356238080,-908.98,0.00010546,2]
[348149898,1736356238089,-1118.12,0.00010546,2]
[348149900,1736356238099,-500.0,0.00010546,2]
[348149902,1736356238108,-2210.18,0.00010546,2]
[348149904,1736356238117,-531.58,0.00010546,2]
[348149906,1736356238127,-500.0,0.00010546,2]
[348149908,1736356238136,-1085.66,0.00010546,2]
[348149910,1736356238146,-765.15,0.00010546,2]
[348149913,1736356238156,-500.0,0.00010546,2]
[348149916,1736356238164,-500.0,0.00010546,2]
[348149919,1736356238173,-500.0,0.00010547,2]
[348149922,1736356238183,-1592.55,0.00010547,2]
[348149925,1736356238192,-796.27,0.00010547,2]
[348149928,1736356238202,-500.0,0.00010547,2]
[348149929,1736356238214,-555.33,0.00010547,2]
[348149931,1736356238226,-500.0,0.00010547,2]
[348149933,1736356238235,-500.0,0.00010547,2]
[348149935,1736356238244,-927.09,0.00010585,2]
[348149937,1736356238254,-933.18,0.00010585,2]
[348149939,1736356238262,-801.47,0.00010585,2]